[Event "Titled Tuesday Blitz July 11 Late 2023"]
[White "Gordievsky, Dmitry"]
[Black "Bortnyk, Mykola"]
[WhiteFideId "24112798"]
[BlackFideId "14120836"]
[WhiteElo "2914"]
[BlackElo "2999"]
[Result "0-1"]
[Round "7"]
[TimeControl "180+2"]
[Date "2023.07.11"]
[WhiteClock "0:00:00"]
[BlackClock "0:00:14"]
[Board "9"]

1. Nf3 {[%clk 0:03:00]}  f5 {[%clk 0:02:58]} 2. g3 {[%clk 0:02:58]}  Nf6 {[%clk 0:02:58]} 3. Bg2 {[%clk 0:02:59]}  e6 {[%clk 0:02:58]} 4. O-O {[%clk 0:02:58]}  Be7 {[%clk 0:02:58]} 5. d4 {[%clk 0:02:55]}  d5 {[%clk 0:02:57]} 6. Nbd2 {[%clk 0:02:51]}  O-O {[%clk 0:02:55]} 7. c4 {[%clk 0:02:49]}  c6 {[%clk 0:02:55]} 8. Ne5 {[%clk 0:02:49]}  Nbd7 {[%clk 0:02:53]} 9. Ndf3 {[%clk 0:02:49]}  Ne4 {[%clk 0:02:50]} 10. h4 {[%clk 0:02:44]}  a5 {[%clk 0:02:45]} 11. Bf4 {[%clk 0:02:44]}  a4 {[%clk 0:02:41]} 12. Rc1 {[%clk 0:02:38]}  Ndf6 {[%clk 0:02:28]} 13. Nd3 {[%clk 0:02:22]}  Bd7 {[%clk 0:02:08]} 14. c5 {[%clk 0:02:16]}  h6 {[%clk 0:02:01]} 15. Nfe5 {[%clk 0:01:51]}  g5 {[%clk 0:02:00]} 16. hxg5 {[%clk 0:01:45]}  hxg5 {[%clk 0:02:01]} 17. Nxd7 {[%clk 0:01:28]}  Nxd7 {[%clk 0:01:54]} 18. Be5 {[%clk 0:01:27]}  Bf6 {[%clk 0:01:49]} 19. e3 {[%clk 0:01:12]}  Qe8 {[%clk 0:01:45]} 20. g4 {[%clk 0:00:54]}  Qg6 {[%clk 0:01:39]} 21. f3 {[%clk 0:00:50]}  Bxe5 {[%clk 0:01:37]} 22. fxe4 {[%clk 0:00:51]}  Bg3 {[%clk 0:01:32]} 23. exf5 {[%clk 0:00:21]}  Qh6 {[%clk 0:01:30]} 24. Rf3 {[%clk 0:00:21]}  Qh2+ {[%clk 0:01:29]} 25. Kf1 {[%clk 0:00:21]}  exf5 {[%clk 0:01:30]} 26. Rxf5 {[%clk 0:00:18]}  Nf6 {[%clk 0:01:22]} 27. Rxg5+ {[%clk 0:00:11]}  Kh8 {[%clk 0:01:23]} 28. Rf5 {[%clk 0:00:11]}  Ne4 {[%clk 0:01:16]} 29. Rc2 {[%clk 0:00:07]}  Qh4 {[%clk 0:01:08]} 30. Qf3 {[%clk 0:00:04]}  Kg7 {[%clk 0:01:00]} 31. Nf4 {[%clk 0:00:03]}  Bxf4 {[%clk 0:00:53]} 32. Rxf4 {[%clk 0:00:04]}  a3 {[%clk 0:00:44]} 33. b3 {[%clk 0:00:03]}  Rae8 {[%clk 0:00:44]} 34. Kg1 {[%clk 0:00:03]}  Ng5 {[%clk 0:00:43]} 35. Qf2 {[%clk 0:00:02]}  Qh7 {[%clk 0:00:39]} 36. Re2 {[%clk 0:00:02]}  Ne6 {[%clk 0:00:38]} 37. Rf5 {[%clk 0:00:02]}  Kg8 {[%clk 0:00:34]} 38. Qg3 {[%clk 0:00:02]}  Ng7 {[%clk 0:00:35]} 39. Rxf8+ {[%clk 0:00:02]}  Rxf8 {[%clk 0:00:36]} 40. Rf2 {[%clk 0:00:02]}  Qb1+ {[%clk 0:00:35]} 41. Bf1 {[%clk 0:00:03]}  Re8 {[%clk 0:00:22]} 42. Qf4 {[%clk 0:00:03]}  Qg6 {[%clk 0:00:22]} 43. Bd3 {[%clk 0:00:04]}  Qe6 {[%clk 0:00:19]} 44. Rh2 {[%clk 0:00:04]}  Qxe3+ {[%clk 0:00:15]} 45. Qxe3 {[%clk 0:00:04]}  Rxe3 {[%clk 0:00:16]} 46. Bf1 {[%clk 0:00:02]}  Ne6 {[%clk 0:00:16]} 47. Rd2 {[%clk 0:00:02]}  Re4 {[%clk 0:00:16]} 48. Kf2 {[%clk 0:00:01]}  Rf4+ {[%clk 0:00:15]} 49. Ke1 {[%clk 0:00:01]}  Rxg4 {[%clk 0:00:15]} 50. Be2 {[%clk 0:00:00]}  Rxd4 {[%clk 0:00:14]} 0-1


[Site "https://www.chess.com"]

[Event "Titled Tuesday Blitz July 11 Late 2023"]
[White "Deac, Bogdan-Daniel"]
[Black "Rustemov, Alexander"]
[WhiteFideId "1226380"]
[BlackFideId "4119002"]
[WhiteElo "2995"]
[BlackElo "2912"]
[Result "1-0"]
[Round "7"]
[TimeControl "180+2"]
[Date "2023.07.11"]
[WhiteClock "0:00:10"]
[BlackClock "0:00:09"]
[Board "10"]

1. b3 {[%clk 0:03:00]}  d5 {[%clk 0:02:56]} 2. Bb2 {[%clk 0:03:00]}  Nf6 {[%clk 0:02:57]} 3. e3 {[%clk 0:03:00]}  Bf5 {[%clk 0:02:57]} 4. c4 {[%clk 0:03:00]}  c6 {[%clk 0:02:54]} 5. cxd5 {[%clk 0:03:00]}  cxd5 {[%clk 0:02:53]} 6. Bb5+ {[%clk 0:03:01]}  Bd7 {[%clk 0:02:49]} 7. Qe2 {[%clk 0:02:55]}  e6 {[%clk 0:02:48]} 8. Nf3 {[%clk 0:02:55]}  Be7 {[%clk 0:02:42]} 9. Ne5 {[%clk 0:02:54]}  O-O {[%clk 0:02:41]} 10. Nxd7 {[%clk 0:02:51]}  Nbxd7 {[%clk 0:02:38]} 11. Qd1 {[%clk 0:02:51]}  a6 {[%clk 0:02:27]} 12. Be2 {[%clk 0:02:51]}  Rc8 {[%clk 0:02:24]} 13. O-O {[%clk 0:02:49]}  Bd6 {[%clk 0:02:21]} 14. Nc3 {[%clk 0:02:36]}  Qe7 {[%clk 0:02:19]} 15. a3 {[%clk 0:02:31]}  Rc7 {[%clk 0:02:15]} 16. b4 {[%clk 0:02:25]}  Nb6 {[%clk 0:02:11]} 17. d3 {[%clk 0:02:07]}  Rfc8 {[%clk 0:02:10]} 18. Qb3 {[%clk 0:02:07]}  d4 {[%clk 0:02:05]} 19. exd4 {[%clk 0:02:02]}  Nbd5 {[%clk 0:02:01]} 20. Ne4 {[%clk 0:02:01]}  b6 {[%clk 0:01:49]} 21. g3 {[%clk 0:01:56]}  h6 {[%clk 0:01:49]} 22. Bf3 {[%clk 0:01:50]}  Qd7 {[%clk 0:01:48]} 23. Rac1 {[%clk 0:01:48]}  Be7 {[%clk 0:01:48]} 24. Kg2 {[%clk 0:01:33]}  g6 {[%clk 0:01:38]} 25. Rxc7 {[%clk 0:01:24]}  Rxc7 {[%clk 0:01:38]} 26. Rc1 {[%clk 0:01:24]}  Kg7 {[%clk 0:01:37]} 27. Rc4 {[%clk 0:01:20]}  h5 {[%clk 0:01:30]} 28. Bc1 {[%clk 0:01:13]}  Ra7 {[%clk 0:01:22]} 29. Bd2 {[%clk 0:01:00]}  a5 {[%clk 0:01:20]} 30. b5 {[%clk 0:01:00]}  Rc7 {[%clk 0:01:17]} 31. a4 {[%clk 0:00:53]}  Qd8 {[%clk 0:01:16]} 32. h4 {[%clk 0:00:48]}  Qf8 {[%clk 0:01:15]} 33. Nxf6 {[%clk 0:00:40]}  Rxc4 {[%clk 0:01:04]} 34. Nxh5+ {[%clk 0:00:37]}  gxh5 {[%clk 0:01:03]} 35. dxc4 {[%clk 0:00:36]}  Bb4 {[%clk 0:01:01]} 36. Bg5 {[%clk 0:00:25]}  f6 {[%clk 0:00:59]} 37. Bc1 {[%clk 0:00:22]}  Ne7 {[%clk 0:00:56]} 38. Bxh5 {[%clk 0:00:21]}  Nf5 {[%clk 0:00:56]} 39. Bb2 {[%clk 0:00:21]}  Qd8 {[%clk 0:00:51]} 40. Qf3 {[%clk 0:00:20]}  Ne7 {[%clk 0:00:31]} 41. Qg4+ {[%clk 0:00:18]}  Kh7 {[%clk 0:00:25]} 42. Qxe6 {[%clk 0:00:18]}  Ng8 {[%clk 0:00:20]} 43. Qf7+ {[%clk 0:00:15]}  Kh8 {[%clk 0:00:18]} 44. Bg6 {[%clk 0:00:15]}  Qe7 {[%clk 0:00:19]} 45. Qxe7 {[%clk 0:00:15]}  Nxe7 {[%clk 0:00:19]} 46. Bd3 {[%clk 0:00:14]}  Kg7 {[%clk 0:00:18]} 47. f4 {[%clk 0:00:12]}  f5 {[%clk 0:00:17]} 48. d5+ {[%clk 0:00:10]}  Kf7 {[%clk 0:00:17]} 49. Bd4 {[%clk 0:00:10]}  Nc8 {[%clk 0:00:13]} 50. Bxf5 {[%clk 0:00:10]}  Nd6 {[%clk 0:00:12]} 51. Bd3 {[%clk 0:00:10]}  Bc5 {[%clk 0:00:13]} 52. Bxc5 {[%clk 0:00:10]}  bxc5 {[%clk 0:00:09]} 53. b6 {[%clk 0:00:10]} 1-0


[Site "https://www.chess.com"]

[Event "Titled Tuesday Blitz July 11 Late 2023"]
[White "Bok, Benjamin"]
[Black "Moroni, Luca Jr"]
[WhiteFideId "1017063"]
[BlackFideId "865834"]
[WhiteElo "2987"]
[BlackElo "2851"]
[Result "0-1"]
[Round "7"]
[TimeControl "180+2"]
[Date "2023.07.11"]
[WhiteClock "0:00:01"]
[BlackClock "0:00:22"]
[Board "11"]

1. d4 {[%clk 0:03:00]}  d5 {[%clk 0:02:59]} 2. c4 {[%clk 0:02:59]}  e6 {[%clk 0:02:59]} 3. Nc3 {[%clk 0:02:59]}  Nf6 {[%clk 0:02:59]} 4. cxd5 {[%clk 0:02:59]}  exd5 {[%clk 0:03:00]} 5. Bg5 {[%clk 0:02:59]}  c6 {[%clk 0:03:00]} 6. e3 {[%clk 0:02:59]}  h6 {[%clk 0:03:01]} 7. Bh4 {[%clk 0:02:59]}  Be6 {[%clk 0:03:01]} 8. Qb3 {[%clk 0:02:57]}  g5 {[%clk 0:02:45]} 9. Bg3 {[%clk 0:02:56]}  Qb6 {[%clk 0:02:44]} 10. Qc2 {[%clk 0:01:54]}  Nbd7 {[%clk 0:02:42]} 11. Bd3 {[%clk 0:01:53]}  Nh5 {[%clk 0:02:39]} 12. Nge2 {[%clk 0:01:42]}  Be7 {[%clk 0:02:31]} 13. O-O {[%clk 0:01:26]}  Nxg3 {[%clk 0:02:27]} 14. Nxg3 {[%clk 0:01:27]}  h5 {[%clk 0:02:28]} 15. Nf5 {[%clk 0:01:24]}  Bf8 {[%clk 0:02:20]} 16. a3 {[%clk 0:01:15]}  O-O-O {[%clk 0:02:13]} 17. b4 {[%clk 0:01:11]}  Kb8 {[%clk 0:02:13]} 18. Na4 {[%clk 0:01:10]}  Qc7 {[%clk 0:02:12]} 19. Nc5 {[%clk 0:01:11]}  h4 {[%clk 0:02:00]} 20. Rfc1 {[%clk 0:01:03]}  g4 {[%clk 0:01:54]} 21. Rab1 {[%clk 0:00:56]}  g3 {[%clk 0:01:45]} 22. h3 {[%clk 0:00:29]}  Bxf5 {[%clk 0:01:25]} 23. Bxf5 {[%clk 0:00:27]}  Nxc5 {[%clk 0:01:23]} 24. bxc5 {[%clk 0:00:26]}  gxf2+ {[%clk 0:01:24]} 25. Qxf2 {[%clk 0:00:26]}  Bh6 {[%clk 0:01:25]} 26. Rb3 {[%clk 0:00:25]}  Ka8 {[%clk 0:01:22]} 27. Rcb1 {[%clk 0:00:25]}  Rb8 {[%clk 0:01:23]} 28. Kh1 {[%clk 0:00:20]}  Rhe8 {[%clk 0:01:20]} 29. Qf3 {[%clk 0:00:18]}  Qe7 {[%clk 0:01:08]} 30. Re1 {[%clk 0:00:14]}  Qf6 {[%clk 0:01:06]} 31. Bd7 {[%clk 0:00:10]}  Qxf3 {[%clk 0:01:05]} 32. gxf3 {[%clk 0:00:11]}  Re7 {[%clk 0:01:06]} 33. Bf5 {[%clk 0:00:11]}  b6 {[%clk 0:00:55]} 34. e4 {[%clk 0:00:06]}  bxc5 {[%clk 0:00:53]} 35. Rxb8+ {[%clk 0:00:07]}  Kxb8 {[%clk 0:00:53]} 36. dxc5 {[%clk 0:00:08]}  d4 {[%clk 0:00:51]} 37. Rd1 {[%clk 0:00:05]}  Be3 {[%clk 0:00:51]} 38. Kg2 {[%clk 0:00:05]}  f6 {[%clk 0:00:50]} 39. Kf1 {[%clk 0:00:04]}  Rg7 {[%clk 0:00:49]} 40. Ke2 {[%clk 0:00:04]}  Kc7 {[%clk 0:00:49]} 41. Kd3 {[%clk 0:00:04]}  Rg2 {[%clk 0:00:49]} 42. Rb1 {[%clk 0:00:04]}  Rd2+ {[%clk 0:00:48]} 43. Kc4 {[%clk 0:00:04]}  Rc2+ {[%clk 0:00:48]} 44. Kd3 {[%clk 0:00:04]}  Rc3+ {[%clk 0:00:46]} 45. Ke2 {[%clk 0:00:04]}  Rxa3 {[%clk 0:00:46]} 46. Be6 {[%clk 0:00:02]}  Rc3 {[%clk 0:00:44]} 47. Ra1 {[%clk 0:00:02]}  Kb8 {[%clk 0:00:39]} 48. Rb1+ {[%clk 0:00:02]}  Kc7 {[%clk 0:00:39]} 49. Ra1 {[%clk 0:00:03]}  Rxc5 {[%clk 0:00:40]} 50. Rxa7+ {[%clk 0:00:03]}  Kd6 {[%clk 0:00:40]} 51. Bg4 {[%clk 0:00:03]}  Rc2+ {[%clk 0:00:40]} 52. Kd3 {[%clk 0:00:02]}  Rc3+ {[%clk 0:00:40]} 53. Ke2 {[%clk 0:00:03]}  Bf4 {[%clk 0:00:40]} 54. Rd7+ {[%clk 0:00:02]}  Kc5 {[%clk 0:00:41]} 55. Rd8 {[%clk 0:00:02]}  Rc2+ {[%clk 0:00:40]} 56. Kd1 {[%clk 0:00:02]}  Rh2 {[%clk 0:00:40]} 57. Ke1 {[%clk 0:00:02]}  Kc4 {[%clk 0:00:39]} 58. Kd1 {[%clk 0:00:02]}  Kd3 {[%clk 0:00:39]} 59. Ke1 {[%clk 0:00:01]}  Ke3 {[%clk 0:00:37]} 60. Kf1 {[%clk 0:00:02]}  d3 {[%clk 0:00:37]} 61. e5 {[%clk 0:00:02]}  fxe5 {[%clk 0:00:27]} 62. Bf5 {[%clk 0:00:03]}  Rf2+ {[%clk 0:00:26]} 63. Kg1 {[%clk 0:00:03]}  Rd2 {[%clk 0:00:27]} 64. Kf1 {[%clk 0:00:03]}  c5 {[%clk 0:00:26]} 65. Be4 {[%clk 0:00:02]}  c4 {[%clk 0:00:26]} 66. Rc8 {[%clk 0:00:03]}  Rf2+ {[%clk 0:00:25]} 67. Kg1 {[%clk 0:00:02]}  Rc2 {[%clk 0:00:26]} 68. Kf1 {[%clk 0:00:02]}  Rc1+ {[%clk 0:00:24]} 69. Kg2 {[%clk 0:00:03]}  d2 {[%clk 0:00:25]} 70. Ra8 {[%clk 0:00:01]}  d1=Q {[%clk 0:00:24]} 71. Ra3+ {[%clk 0:00:02]}  Qb3 {[%clk 0:00:22]} 72. Ra6 {[%clk 0:00:01]} 0-1


[Site "https://www.chess.com"]

[Event "Titled Tuesday Blitz July 11 Late 2023"]
[White "Weishaeutel, Moritz"]
[Black "Shimanov, Aleksandr"]
[WhiteFideId "12967300"]
[BlackFideId "4198603"]
[WhiteElo "2648"]
[BlackElo "2934"]
[Result "0-1"]
[Round "7"]
[TimeControl "180+2"]
[Date "2023.07.11"]
[WhiteClock "0:00:00"]
[BlackClock "0:00:29"]
[Board "14"]

1. e4 {[%clk 0:03:00]}  e6 {[%clk 0:02:59]} 2. d4 {[%clk 0:03:01]}  d5 {[%clk 0:03:00]} 3. exd5 {[%clk 0:03:02]}  exd5 {[%clk 0:03:00]} 4. Nf3 {[%clk 0:03:03]}  c5 {[%clk 0:03:00]} 5. Bb5+ {[%clk 0:03:00]}  Nc6 {[%clk 0:03:00]} 6. O-O {[%clk 0:03:01]}  Bd6 {[%clk 0:03:00]} 7. dxc5 {[%clk 0:03:00]}  Bxc5 {[%clk 0:03:01]} 8. Nbd2 {[%clk 0:03:00]}  Ne7 {[%clk 0:03:01]} 9. Nb3 {[%clk 0:03:00]}  Bb6 {[%clk 0:03:02]} 10. c3 {[%clk 0:03:00]}  O-O {[%clk 0:03:02]} 11. h3 {[%clk 0:03:00]}  Nf5 {[%clk 0:03:00]} 12. Bg5 {[%clk 0:02:55]}  Qd6 {[%clk 0:02:57]} 13. Qd2 {[%clk 0:02:45]}  Qg6 {[%clk 0:02:30]} 14. Bd3 {[%clk 0:02:01]}  h6 {[%clk 0:02:30]} 15. Nh4 {[%clk 0:01:54]}  Qxg5 {[%clk 0:02:26]} 16. Qxg5 {[%clk 0:01:54]}  hxg5 {[%clk 0:02:27]} 17. Nxf5 {[%clk 0:01:55]}  g6 {[%clk 0:02:20]} 18. Nd6 {[%clk 0:01:55]}  Ne5 {[%clk 0:02:17]} 19. Nxc8 {[%clk 0:01:36]}  Raxc8 {[%clk 0:02:15]} 20. Rad1 {[%clk 0:01:36]}  Rfd8 {[%clk 0:02:14]} 21. Rfe1 {[%clk 0:01:31]}  Nc4 {[%clk 0:02:11]} 22. Re2 {[%clk 0:01:29]}  Kf8 {[%clk 0:02:03]} 23. Rde1 {[%clk 0:01:05]}  Rd6 {[%clk 0:01:41]} 24. g3 {[%clk 0:00:57]}  Rf6 {[%clk 0:01:40]} 25. Kg2 {[%clk 0:00:57]}  Rd8 {[%clk 0:01:31]} 26. Rd1 {[%clk 0:00:53]}  Rfd6 {[%clk 0:01:31]} 27. Bxc4 {[%clk 0:00:45]}  dxc4 {[%clk 0:01:31]} 28. Rxd6 {[%clk 0:00:46]}  Rxd6 {[%clk 0:01:32]} 29. Nd2 {[%clk 0:00:47]}  Rc6 {[%clk 0:01:27]} 30. Nf3 {[%clk 0:00:45]}  Bd8 {[%clk 0:01:24]} 31. Ne5 {[%clk 0:00:43]}  Rc7 {[%clk 0:01:25]} 32. Rd2 {[%clk 0:00:42]}  Ke8 {[%clk 0:01:25]} 33. Rd4 {[%clk 0:00:37]}  b5 {[%clk 0:01:25]} 34. Rd5 {[%clk 0:00:33]}  Rb7 {[%clk 0:01:15]} 35. Nc6 {[%clk 0:00:30]}  Bf6 {[%clk 0:01:16]} 36. Nd4 {[%clk 0:00:26]}  Bxd4 {[%clk 0:01:09]} 37. Rxd4 {[%clk 0:00:26]}  Ke7 {[%clk 0:01:06]} 38. Rd5 {[%clk 0:00:25]}  f6 {[%clk 0:01:06]} 39. Kf3 {[%clk 0:00:19]}  Ke6 {[%clk 0:01:06]} 40. Rd8 {[%clk 0:00:19]}  Rh7 {[%clk 0:01:04]} 41. Rb8 {[%clk 0:00:17]}  a6 {[%clk 0:00:43]} 42. Rb6+ {[%clk 0:00:17]}  Ke5 {[%clk 0:00:44]} 43. Rxa6 {[%clk 0:00:18]}  Rb7 {[%clk 0:00:44]} 44. a4 {[%clk 0:00:14]}  bxa4 {[%clk 0:00:44]} 45. Rxa4 {[%clk 0:00:15]}  Kd5 {[%clk 0:00:43]} 46. Ra5+ {[%clk 0:00:13]}  Kc6 {[%clk 0:00:43]} 47. Ra6+ {[%clk 0:00:13]}  Kc5 {[%clk 0:00:41]} 48. Rxf6 {[%clk 0:00:13]}  Rxb2 {[%clk 0:00:41]} 49. Rxg6 {[%clk 0:00:13]}  Rc2 {[%clk 0:00:41]} 50. Rxg5+ {[%clk 0:00:14]}  Kc6 {[%clk 0:00:42]} 51. h4 {[%clk 0:00:13]}  Rxc3+ {[%clk 0:00:42]} 52. Kg2 {[%clk 0:00:11]}  Rd3 {[%clk 0:00:40]} 53. Rg4 {[%clk 0:00:07]}  Kc5 {[%clk 0:00:40]} 54. h5 {[%clk 0:00:07]}  c3 {[%clk 0:00:39]} 55. Rg8 {[%clk 0:00:07]}  Rd6 {[%clk 0:00:35]} 56. Rc8+ {[%clk 0:00:07]}  Kb4 {[%clk 0:00:30]} 57. g4 {[%clk 0:00:05]}  Kb3 {[%clk 0:00:28]} 58. Kg3 {[%clk 0:00:05]}  c2 {[%clk 0:00:28]} 59. g5 {[%clk 0:00:03]}  Rd3+ {[%clk 0:00:28]} 60. f3 {[%clk 0:00:03]}  Rc3 {[%clk 0:00:28]} 61. Rxc3+ {[%clk 0:00:01]}  Kxc3 {[%clk 0:00:29]} 62. h6 {[%clk 0:00:01]}  c1=Q {[%clk 0:00:29]} 63. h7 {[%clk 0:00:00]}  Qxg5+ {[%clk 0:00:29]} 0-1


[Site "https://www.chess.com"]

[Event "Titled Tuesday Blitz July 11 Late 2023"]
[White "Nepomniachtchi, Ian"]
[Black "Perez Ponsa, Federico"]
[WhiteFideId "4168119"]
[BlackFideId "117927"]
[WhiteElo "3097"]
[BlackElo "2808"]
[Result "0-1"]
[Round "7"]
[TimeControl "180+2"]
[Date "2023.07.11"]
[WhiteClock "0:00:00"]
[BlackClock "0:01:04"]
[Board "15"]

1. e4 {[%clk 0:03:00]}  c6 {[%clk 0:02:56]} 2. b3 {[%clk 0:03:00]}  d5 {[%clk 0:02:56]} 3. Bb2 {[%clk 0:03:01]}  dxe4 {[%clk 0:02:56]} 4. Nc3 {[%clk 0:03:00]}  Nf6 {[%clk 0:02:57]} 5. Qe2 {[%clk 0:03:01]}  Bf5 {[%clk 0:02:57]} 6. O-O-O {[%clk 0:03:01]}  e6 {[%clk 0:02:57]} 7. h3 {[%clk 0:03:01]}  h5 {[%clk 0:02:56]} 8. f3 {[%clk 0:03:00]}  exf3 {[%clk 0:02:55]} 9. Nxf3 {[%clk 0:03:01]}  Nbd7 {[%clk 0:02:55]} 10. Nh4 {[%clk 0:03:01]}  Bh7 {[%clk 0:02:53]} 11. g4 {[%clk 0:03:01]}  Qa5 {[%clk 0:02:39]} 12. Qg2 {[%clk 0:02:57]}  hxg4 {[%clk 0:02:25]} 13. hxg4 {[%clk 0:02:57]}  g5 {[%clk 0:02:22]} 14. Nf3 {[%clk 0:02:44]}  O-O-O {[%clk 0:02:21]} 15. Bd3 {[%clk 0:02:42]}  Ba3 {[%clk 0:02:15]} 16. Bxh7 {[%clk 0:02:39]}  Rxh7 {[%clk 0:02:13]} 17. Rhf1 {[%clk 0:02:39]}  Rdh8 {[%clk 0:02:08]} 18. Kb1 {[%clk 0:02:38]}  Bxb2 {[%clk 0:02:08]} 19. Kxb2 {[%clk 0:02:39]}  Nd5 {[%clk 0:01:58]} 20. Qg3 {[%clk 0:02:31]}  f6 {[%clk 0:01:45]} 21. Ne4 {[%clk 0:02:29]}  Qc7 {[%clk 0:01:41]} 22. Qg1 {[%clk 0:02:26]}  Kb8 {[%clk 0:01:40]} 23. Kb1 {[%clk 0:02:22]}  Rh3 {[%clk 0:01:36]} 24. Nd4 {[%clk 0:02:22]}  Qe5 {[%clk 0:01:33]} 25. Nf2 {[%clk 0:02:07]}  Rg3 {[%clk 0:01:27]} 26. Nd3 {[%clk 0:02:07]}  Rxg1 {[%clk 0:01:10]} 27. Nxe5 {[%clk 0:02:07]}  Rxf1 {[%clk 0:01:11]} 28. Nxd7+ {[%clk 0:02:00]}  Kc7 {[%clk 0:01:11]} 29. Rxf1 {[%clk 0:01:58]}  Kxd7 {[%clk 0:01:12]} 30. c4 {[%clk 0:01:49]}  Nf4 {[%clk 0:01:12]} 31. Kc2 {[%clk 0:01:49]}  Rh4 {[%clk 0:01:07]} 32. Rg1 {[%clk 0:01:49]}  Ng6 {[%clk 0:01:06]} 33. Nf3 {[%clk 0:01:46]}  Rh3 {[%clk 0:01:06]} 34. Rf1 {[%clk 0:01:42]}  Rg3 {[%clk 0:01:04]} 35. Rh1 {[%clk 0:00:00]}  Rxf3 {[%clk 0:01:04]} 0-1


[Site "https://www.chess.com"]

[Event "Titled Tuesday Blitz July 11 Late 2023"]
[White "Bluebaum, Matthias"]
[Black "Kadric, Denis"]
[WhiteFideId "24651516"]
[BlackFideId "14403803"]
[WhiteElo "3039"]
[BlackElo "2787"]
[Result "1-0"]
[Round "7"]
[TimeControl "180+2"]
[Date "2023.07.11"]
[WhiteClock "0:00:35"]
[BlackClock "0:00:09"]
[Board "16"]

1. d4 {[%clk 0:03:00]}  d6 {[%clk 0:02:52]} 2. Nf3 {[%clk 0:03:01]}  Nf6 {[%clk 0:02:52]} 3. c4 {[%clk 0:03:01]}  Nbd7 {[%clk 0:02:53]} 4. Nc3 {[%clk 0:03:02]}  e5 {[%clk 0:02:53]} 5. Bg5 {[%clk 0:03:02]}  h6 {[%clk 0:02:52]} 6. Bh4 {[%clk 0:03:03]}  Be7 {[%clk 0:02:53]} 7. e3 {[%clk 0:03:03]}  c6 {[%clk 0:02:52]} 8. Qc2 {[%clk 0:03:04]}  O-O {[%clk 0:02:52]} 9. Be2 {[%clk 0:03:04]}  exd4 {[%clk 0:02:51]} 10. Nxd4 {[%clk 0:03:04]}  Re8 {[%clk 0:02:47]} 11. O-O {[%clk 0:03:04]}  Nc5 {[%clk 0:02:48]} 12. Bg3 {[%clk 0:03:00]}  Bf8 {[%clk 0:02:44]} 13. h3 {[%clk 0:02:57]}  Nfe4 {[%clk 0:02:40]} 14. Nxe4 {[%clk 0:02:56]}  Nxe4 {[%clk 0:02:41]} 15. Bh2 {[%clk 0:02:57]}  Qg5 {[%clk 0:02:40]} 16. Kh1 {[%clk 0:02:44]}  Qh4 {[%clk 0:02:36]} 17. Bd3 {[%clk 0:02:37]}  Nc5 {[%clk 0:02:29]} 18. Bh7+ {[%clk 0:02:23]}  Kh8 {[%clk 0:02:29]} 19. Bf5 {[%clk 0:02:24]}  g6 {[%clk 0:02:25]} 20. Bxc8 {[%clk 0:02:22]}  Raxc8 {[%clk 0:02:26]} 21. Rad1 {[%clk 0:02:22]}  Rcd8 {[%clk 0:02:20]} 22. b4 {[%clk 0:02:22]}  Ne4 {[%clk 0:02:18]} 23. Nf3 {[%clk 0:02:21]}  Qe7 {[%clk 0:02:14]} 24. Kg1 {[%clk 0:02:17]}  Bg7 {[%clk 0:02:11]} 25. Rd3 {[%clk 0:02:16]}  Rd7 {[%clk 0:01:54]} 26. Rfd1 {[%clk 0:02:15]}  Red8 {[%clk 0:01:54]} 27. Nd2 {[%clk 0:02:08]}  f5 {[%clk 0:01:39]} 28. Nxe4 {[%clk 0:02:00]}  Qxe4 {[%clk 0:01:14]} 29. Qb3 {[%clk 0:01:59]}  d5 {[%clk 0:01:09]} 30. cxd5 {[%clk 0:01:56]}  Rxd5 {[%clk 0:01:10]} 31. Rxd5 {[%clk 0:01:56]}  Rxd5 {[%clk 0:01:10]} 32. Rxd5 {[%clk 0:01:55]}  Qxd5 {[%clk 0:01:06]} 33. Qxd5 {[%clk 0:01:42]}  cxd5 {[%clk 0:01:06]} 34. Kf1 {[%clk 0:01:41]}  b5 {[%clk 0:01:00]} 35. Ke2 {[%clk 0:01:40]}  Bf8 {[%clk 0:00:53]} 36. Kd3 {[%clk 0:01:26]}  Bg7 {[%clk 0:00:43]} 37. Bb8 {[%clk 0:01:15]}  a6 {[%clk 0:00:43]} 38. f4 {[%clk 0:01:12]}  Kg8 {[%clk 0:00:41]} 39. Be5 {[%clk 0:00:56]}  Bf8 {[%clk 0:00:41]} 40. Kd4 {[%clk 0:00:54]}  Bxb4 {[%clk 0:00:41]} 41. Kxd5 {[%clk 0:00:54]}  Kf7 {[%clk 0:00:35]} 42. Bd4 {[%clk 0:00:51]}  g5 {[%clk 0:00:21]} 43. fxg5 {[%clk 0:00:42]}  hxg5 {[%clk 0:00:22]} 44. g4 {[%clk 0:00:42]}  Kg6 {[%clk 0:00:17]} 45. gxf5+ {[%clk 0:00:37]}  Kxf5 {[%clk 0:00:18]} 46. e4+ {[%clk 0:00:38]}  Kf4 {[%clk 0:00:17]} 47. e5 {[%clk 0:00:39]}  Kg3 {[%clk 0:00:08]} 48. e6 {[%clk 0:00:39]}  Kxh3 {[%clk 0:00:09]} 49. Bc5 {[%clk 0:00:38]}  Bxc5 {[%clk 0:00:07]} 50. Kxc5 {[%clk 0:00:39]}  g4 {[%clk 0:00:08]} 51. e7 {[%clk 0:00:40]}  g3 {[%clk 0:00:09]} 52. e8=Q {[%clk 0:00:40]}  g2 {[%clk 0:00:09]} 53. Qh5+ {[%clk 0:00:35]} 1-0


[Site "https://www.chess.com"]

[Event "Titled Tuesday Blitz July 11 Late 2023"]
[White "Chigaev, Maksim"]
[Black "Lavrik, Dmitry"]
[WhiteFideId "4108116"]
[BlackFideId "24113190"]
[WhiteElo "2959"]
[BlackElo "2695"]
[Result "1-0"]
[Round "7"]
[TimeControl "180+2"]
[Date "2023.07.11"]
[WhiteClock "0:00:03"]
[BlackClock "0:00:03"]
[Board "19"]

1. e4 {[%clk 0:02:59]}  c5 {[%clk 0:02:59]} 2. b3 {[%clk 0:02:59]}  Nc6 {[%clk 0:02:49]} 3. Bb2 {[%clk 0:02:59]}  e5 {[%clk 0:02:49]} 4. Bc4 {[%clk 0:02:47]}  d6 {[%clk 0:02:46]} 5. Ne2 {[%clk 0:02:46]}  g6 {[%clk 0:02:45]} 6. O-O {[%clk 0:02:44]}  Bg7 {[%clk 0:02:45]} 7. f4 {[%clk 0:02:44]}  Nf6 {[%clk 0:02:36]} 8. d3 {[%clk 0:02:40]}  O-O {[%clk 0:02:34]} 9. Nbc3 {[%clk 0:02:41]}  Bg4 {[%clk 0:02:29]} 10. Qd2 {[%clk 0:02:37]}  Nd4 {[%clk 0:02:20]} 11. Ng3 {[%clk 0:02:16]}  Rb8 {[%clk 0:01:40]} 12. a4 {[%clk 0:02:15]}  Be6 {[%clk 0:01:34]} 13. f5 {[%clk 0:02:05]}  Bxc4 {[%clk 0:01:26]} 14. bxc4 {[%clk 0:02:05]}  a6 {[%clk 0:01:26]} 15. a5 {[%clk 0:02:05]}  b5 {[%clk 0:01:24]} 16. axb6 {[%clk 0:02:06]}  Rxb6 {[%clk 0:01:24]} 17. Bc1 {[%clk 0:02:02]}  Ng4 {[%clk 0:01:10]} 18. Nge2 {[%clk 0:01:31]}  Bh6 {[%clk 0:00:47]} 19. Qd1 {[%clk 0:01:29]}  Qh4 {[%clk 0:00:48]} 20. h3 {[%clk 0:01:27]}  Ne3 {[%clk 0:00:46]} 21. Bxe3 {[%clk 0:01:27]}  Bxe3+ {[%clk 0:00:47]} 22. Kh1 {[%clk 0:01:28]}  Bh6 {[%clk 0:00:44]} 23. Nxd4 {[%clk 0:01:16]}  exd4 {[%clk 0:00:41]} 24. Nd5 {[%clk 0:01:17]}  Rb7 {[%clk 0:00:37]} 25. Rxa6 {[%clk 0:01:12]}  Rfb8 {[%clk 0:00:37]} 26. Rxd6 {[%clk 0:00:55]}  Bg7 {[%clk 0:00:33]} 27. Rc6 {[%clk 0:00:30]}  Be5 {[%clk 0:00:24]} 28. Qf3 {[%clk 0:00:31]}  Rb1 {[%clk 0:00:22]} 29. Rc8+ {[%clk 0:00:29]}  Kg7 {[%clk 0:00:15]} 30. Rxb8 {[%clk 0:00:22]}  Rxf1+ {[%clk 0:00:15]} 31. Qxf1 {[%clk 0:00:22]}  Bxb8 {[%clk 0:00:16]} 32. f6+ {[%clk 0:00:11]}  Kf8 {[%clk 0:00:12]} 33. Qg1 {[%clk 0:00:03]}  Qg3 {[%clk 0:00:11]} 34. Nb6 {[%clk 0:00:03]}  Ke8 {[%clk 0:00:11]} 35. Na4 {[%clk 0:00:03]}  Bd6 {[%clk 0:00:12]} 36. Nb6 {[%clk 0:00:03]}  Kd8 {[%clk 0:00:10]} 37. Nd5 {[%clk 0:00:03]}  Be5 {[%clk 0:00:11]} 38. Nb6 {[%clk 0:00:02]}  g5 {[%clk 0:00:09]} 39. Na4 {[%clk 0:00:02]}  Bd6 {[%clk 0:00:09]} 40. e5 {[%clk 0:00:02]}  Qxe5 {[%clk 0:00:09]} 41. g3 {[%clk 0:00:02]}  Qxf6 {[%clk 0:00:08]} 42. Qg2 {[%clk 0:00:02]}  Ke7 {[%clk 0:00:06]} 43. Nb6 {[%clk 0:00:02]}  Kf8 {[%clk 0:00:03]} 44. Nd7+ {[%clk 0:00:03]} 1-0


[Site "https://www.chess.com"]